fUSD/lending_fUSD_20250115
["ID","MTS","AMOUNT","RATE_DAILY","PERIOD"]
[348970782,1736903450300,-997.8,0.00013011,2]
[348970783,1736903450309,-500.0,0.00013011,2]
[348970784,1736903450319,-500.0,0.00013011,2]
[348970785,1736903450328,-500.0,0.00013011,2]
[348970786,1736903450336,-500.0,0.00013011,2]
[348970787,1736903450346,-500.0,0.00013011,2]
[348970788,1736903450354,-314.173266,0.00013011,2]
[348970789,1736903450362,-500.0,0.00013011,2]
[348970790,1736903450371,-1012.27,0.00013011,2]
[348970791,1736903450380,-268.356353,0.00013011,2]
[348970792,1736903450390,-500.0,0.00013011,2]
[348970793,1736903450401,-500.0,0.00013012,2]
[348970794,1736903450410,-500.0,0.00013012,2]
[348970795,1736903450419,-500.0,0.00013012,2]
[348970796,1736903450427,-500.0,0.00013012,2]
[348970797,1736903450436,-581.96,0.00013012,2]
[348970798,1736903450445,-500.0,0.00013012,2]
[348970799,1736903450454,-500.0,0.00013044,2]
[348970800,1736903450463,-500.0,0.00013044,2]
[348970801,1736903450473,-500.0,0.00013044,2]
[348970802,1736903450483,-504.47172951,0.00013044,2]
[348970803,1736903450493,-994.95,0.00013044,2]
[348970804,1736903450503,-500.0,0.00013044,2]
[348970805,1736903450512,-175.33,0.00013052,2]
[348970806,1736903450522,-500.0,0.00013064,2]
[348970807,1736903450531,-500.0,0.00013064,2]
[348970808,1736903450540,-500.0,0.00013064,2]
[348970809,1736903450549,-500.0,0.00013064,2]
[348970810,1736903450559,-500.0,0.00013064,2]
[348970811,1736903450568,-500.0,0.00013064,2]
[348970812,1736903450577,-500.0,0.00013064,2]
[348970813,1736903450585,-607.88,0.00013064,2]
[348970814,1736903450594,-500.0,0.00013064,2]
[348970815,1736903450603,-500.0,0.00013064,2]
[348970816,1736903450612,-500.0,0.00013064,2]
[348970817,1736903450621,-500.0,0.00013064,2]
[348970818,1736903450630,-500.0,0.00013064,2]
[348970819,1736903450639,-520.56,0.00013064,2]
[348970820,1736903450651,-500.0,0.00013064,2]
[348970821,1736903450661,-500.0,0.00013064,2]
[348970822,1736903450670,-1662.21,0.00013064,2]
[348970823,1736903450679,-2706.75,0.00013065,2]
[348970824,1736903450688,-500.0,0.00013065,2]
[348970825,1736903450697,-662.71,0.00013065,2]
[348970826,1736903450706,-500.0,0.00013065,2]
[348970827,1736903450715,-500.0,0.00013065,2]
[348970828,1736903450723,-775.99,0.00013065,2]
[348970829,1736903450733,-500.0,0.00013065,2]
[348970830,1736903450742,-500.0,0.00013065,2]
[348970831,1736903450752,-500.0,0.00013065,2]
[348970832,1736903450761,-500.0,0.00013065,2]
[348970833,1736903450771,-500.0,0.00013065,2]
[348970834,1736903450780,-500.0,0.00013065,2]
[348970835,1736903450789,-500.0,0.00013065,2]
[348970836,1736903450798,-500.0,0.00013065,2]
[348970837,1736903450807,-767.14,0.00013065,2]
[348970838,1736903450816,-1599.67,0.00013065,2]
[348970839,1736903450825,-500.0,0.00013065,2]
[348970840,1736903450834,-782.50211009,0.00013137,2]
[348970841,1736903450843,-500.0,0.00013171,2]
[348970842,1736903450852,-524.79,0.00013171,2]
[348970843,1736903450861,-175.33,0.00013189,2]
[348970844,1736903450870,-3892.448,0.00013189,2]
[348970845,1736903450879,-186.283,0.00013189,2]
[348970846,1736903450888,-500.0,0.00013189,2]
[348970847,1736903450897,-500.0,0.00013189,2]
[348970848,1736903450908,-566.82,0.00013189,2]
[348970849,1736903450917,-500.0,0.00013189,2]
[348970850,1736903450926,-500.0,0.00013189,2]
[348970851,1736903450934,-615.99,0.00013189,2]
[348970852,1736903450943,-590.33,0.00013189,2]
[348970853,1736903450952,-929.0,0.000132,2]
[348970854,1736903450961,-635.0,0.000132,2]
[348970855,1736903450970,-365.0,0.000132,2]
[348970856,1736903450979,-5800.0,0.00013246,2]
[348970857,1736903450987,-5800.0,0.00013254,2]
[348970858,1736903450996,-825.80658522,0.00013279,2]
[348970859,1736903451005,-500.0,0.00013281,2]
[348970860,1736903451014,-560.86,0.00013281,2]
[348970861,1736903451023,-500.0,0.00013281,2]
[348970862,1736903451034,-500.0,0.00013281,2]
[348970863,1736903451043,-500.0,0.00013281,2]
[348970864,1736903451053,-500.0,0.00013285,2]
[348970865,1736903451065,-500.0,0.00013285,2]
[348970866,1736903451076,-500.0,0.00013285,2]
[348970867,1736903451087,-500.0,0.00013285,2]
[348970868,1736903451096,-500.0,0.00013285,2]
[348970869,1736903451107,-500.0,0.00013285,2]
[348970870,1736903451120,-500.0,0.00013285,2]
[348970871,1736903451134,-500.0,0.00013285,2]
[348970872,1736903451143,-500.0,0.00013285,2]
[348970873,1736903451154,-500.0,0.00013285,2]
[348970874,1736903451165,-500.0,0.00013285,2]
[348970875,1736903451174,-631.44738812,0.00013285,2]
[348970876,1736903451183,-500.0,0.00013285,2]
[348970877,1736903451192,-500.0,0.00013285,2]
[348970878,1736903451204,-500.0,0.00013285,2]
[348970879,1736903451216,-500.0,0.00013285,2]
[348970880,1736903451225,-1045.75,0.00013285,2]
[348970881,1736903451235,-500.0,0.00013285,2]
[348970882,1736903451244,-908.91,0.00013285,2]
[348970883,1736903451254,-573.74,0.00013285,2]
[348970884,1736903451263,-500.0,0.00013285,2]
[348970885,1736903451272,-753.86,0.00013285,2]
[348970886,1736903451281,-500.0,0.00013285,2]
[348970887,1736903451291,-500.0,0.00013285,2]
[348970888,1736903451300,-875.17,0.00013285,2]
[348970889,1736903451311,-202.92918555,0.00013285,2]
[348970890,1736903451320,-565.33,0.00013285,2]
[348970891,1736903451330,-997.8,0.00013285,2]
[348970892,1736903451340,-500.0,0.00013285,2]
[348970893,1736903451349,-500.0,0.00013285,2]
[348970894,1736903451359,-500.0,0.00013285,2]
[348970895,1736903451368,-500.0,0.00013285,2]
[348970896,1736903451378,-500.0,0.00013285,2]
[348970897,1736903451389,-314.173266,0.00013285,2]
[348970898,1736903451399,-500.0,0.00013285,2]
[348970899,1736903451409,-1012.27,0.00013285,2]
[348970900,1736903451418,-268.356353,0.00013285,2]
[348970901,1736903451426,-500.0,0.00013285,2]
[348970902,1736903451435,-500.0,0.00013286,2]
[348970903,1736903451444,-500.0,0.00013286,2]
[348970904,1736903451454,-500.0,0.00013286,2]
[348970905,1736903451464,-500.0,0.00013286,2]
[348970906,1736903451474,-581.96,0.00013286,2]
[348970907,1736903451484,-500.0,0.00013286,2]
[348970908,1736903451493,-500.0,0.00013318,2]
[348970909,1736903451502,-500.0,0.00013318,2]
[348970910,1736903451512,-500.0,0.00013318,2]
[348970911,1736903451521,-994.95,0.00013318,2]
[348970912,1736903451532,-500.0,0.00013318,2]
[348970913,1736903451541,-175.33,0.00013326,2]
[348970914,1736903451551,-500.0,0.00013338,2]
[348970915,1736903451562,-500.0,0.00013338,2]
[348970916,1736903451571,-500.0,0.00013338,2]
[348970917,1736903451581,-500.0,0.00013338,2]
[348970918,1736903451590,-500.0,0.00013338,2]
[348970919,1736903451600,-500.0,0.00013338,2]
[348970920,1736903451609,-500.0,0.00013338,2]
[348970921,1736903451618,-607.88,0.00013338,2]
[348970922,1736903451627,-500.0,0.00013338,2]
[348970923,1736903451636,-500.0,0.00013338,2]
[348970924,1736903451645,-500.0,0.00013338,2]
[348970925,1736903451656,-500.0,0.00013338,2]
[348970926,1736903451665,-500.0,0.00013338,2]
[348970927,1736903451674,-520.56,0.00013338,2]
[348970928,1736903451683,-500.0,0.00013338,2]
[348970929,1736903451693,-500.0,0.00013338,2]
[348970930,1736903451702,-1662.21,0.00013338,2]
[348970931,1736903451711,-2706.75,0.00013339,2]
[348970932,1736903451720,-500.0,0.00013339,2]
[348970933,1736903451730,-662.71,0.00013339,2]
[348970934,1736903451739,-500.0,0.00013339,2]
[348970935,1736903451748,-500.0,0.00013339,2]
[348970936,1736903451756,-775.99,0.00013339,2]
[348970937,1736903451766,-500.0,0.00013339,2]
[348970938,1736903451775,-500.0,0.00013339,2]
[348970939,1736903451784,-500.0,0.00013339,2]
[348970940,1736903451794,-500.0,0.00013339,2]
[348970941,1736903451803,-500.0,0.00013339,2]
[348970942,1736903451812,-500.0,0.00013339,2]
[348970943,1736903451821,-500.0,0.00013339,2]
[348970944,1736903451831,-500.0,0.00013339,2]
[348970945,1736903451840,-767.14,0.00013339,2]
[348970946,1736903451849,-1599.67,0.00013339,2]
[348970947,1736903451859,-500.0,0.00013339,2]
[348970948,1736903451868,-186.51,0.00013393,2]
[348970949,1736903451878,-188.09,0.00013411,2]
[348970950,1736903451889,-500.0,0.00013445,2]
[348970951,1736903451899,-524.79,0.00013445,2]
[348970952,1736903451909,-175.33,0.00013463,2]
[348970953,1736903451918,-612.33952226,0.00013463,2]
[348970954,1736903451928,-500.0,0.00013463,2]
[348970955,1736903451938,-500.0,0.00013463,2]
[348970956,1736903451947,-566.82,0.00013463,2]
[348970957,1736903451957,-500.0,0.00013463,2]
[348970958,1736903451966,-500.0,0.00013463,2]
[348970959,1736903451976,-615.99,0.00013463,2]
[348970960,1736903451986,-590.33,0.00013463,2]
[348970961,1736903451995,-500.0,0.00013541,2]
[348970962,1736903452004,-500.0,0.00013541,2]
[348970963,1736903452013,-200.0,0.00013541,2]
[348970964,1736903452023,-153.44742952,0.00013542,2]
[348970965,1736903452032,-500.0,0.00013555,2]
[348970966,1736903452042,-560.86,0.00013555,2]
[348970967,1736903452051,-500.0,0.00013555,2]
[348970968,1736903452061,-500.0,0.00013555,2]
[348970969,1736903452071,-500.0,0.00013555,2]
[348970970,1736903452080,-500.0,0.00013559,2]
[348970971,1736903452090,-500.0,0.00013559,2]
[348970972,1736903452099,-500.0,0.00013559,2]
[348970973,1736903452110,-500.0,0.00013559,2]
[348970974,1736903452124,-385.30167277,0.00013559,2]
[348970975,1736903452135,-500.0,0.00013559,2]
[348970976,1736903452144,-500.0,0.00013559,2]
[348970977,1736903452156,-500.0,0.00013559,2]
[348970978,1736903452167,-500.0,0.00013559,2]
[348970979,1736903452176,-411.86947311,0.00013559,2]
[348970980,1736903452186,-500.0,0.00013559,2]
[348970981,1736903452195,-500.0,0.00013559,2]
[348970982,1736903452205,-500.0,0.00013559,2]
[348970983,1736903452214,-500.0,0.00013559,2]
[348970984,1736903452224,-500.0,0.00013559,2]
[348970985,1736903452233,-500.0,0.00013559,2]
[348970986,1736903452242,-1045.75,0.00013559,2]
[348970987,1736903452251,-500.0,0.00013559,2]
[348970988,1736903452261,-908.91,0.00013559,2]
[348970989,1736903452270,-573.74,0.00013559,2]
[348970990,1736903452280,-500.0,0.00013559,2]
[348970991,1736903452290,-753.86,0.00013559,2]
[348970992,1736903452300,-500.0,0.00013559,2]
[348970993,1736903452310,-500.0,0.00013559,2]
[348970994,1736903452319,-875.17,0.00013559,2]
[348970995,1736903452329,-565.33,0.00013559,2]
[348970996,1736903452338,-997.8,0.00013559,2]
[348970997,1736903452348,-500.0,0.00013559,2]
[348970998,1736903452358,-500.0,0.00013559,2]
[348970999,1736903452367,-500.0,0.00013559,2]
[348971000,1736903452377,-500.0,0.00013559,2]
[348971001,1736903452387,-500.0,0.00013559,2]
[348971002,1736903452397,-314.173266,0.00013559,2]
[348971003,1736903452407,-500.0,0.00013559,2]
[348971004,1736903452416,-1012.27,0.00013559,2]
[348971005,1736903452426,-268.356353,0.00013559,2]
[348971006,1736903452436,-500.0,0.00013559,2]
[348971007,1736903452445,-500.0,0.0001356,2]
[348971008,1736903452454,-500.0,0.0001356,2]
[348971009,1736903452464,-325.0381638,0.0001356,2]
[348971010,1736903452512,-109.74024996,0.0001356,2]
[348971011,1736903452521,-500.0,0.0001356,2]
[348971012,1736903452531,-581.96,0.0001356,2]
[348971013,1736903452540,-500.0,0.0001356,2]
[348971014,1736903452549,-500.0,0.00013592,2]
[348971015,1736903452558,-500.0,0.00013592,2]
[348971016,1736903452567,-500.0,0.00013592,2]
[348971017,1736903452577,-994.95,0.00013592,2]
[348971018,1736903452586,-500.0,0.00013592,2]
[348971019,1736903452596,-175.33,0.000136,2]
[348971020,1736903452605,-500.0,0.00013612,2]
[348971021,1736903452614,-500.0,0.00013612,2]
[348971022,1736903452623,-570.92278515,0.00013612,2]
[348971023,1736903452633,-500.0,0.00013612,2]
[348971024,1736903452642,-500.0,0.00013612,2]
[348971025,1736903452653,-500.0,0.00013612,2]
[348971026,1736903452663,-500.0,0.00013612,2]
[348971027,1736903452672,-607.88,0.00013612,2]
[348971028,1736903452681,-500.0,0.00013612,2]
[348971029,1736903452690,-500.0,0.00013612,2]
[348971030,1736903452699,-500.0,0.00013612,2]
[348971031,1736903452708,-500.0,0.00013612,2]
[348971032,1736903452719,-500.0,0.00013612,2]
[348971033,1736903452728,-520.56,0.00013612,2]
[348971034,1736903452739,-500.0,0.00013612,2]
[348971035,1736903452748,-500.0,0.00013612,2]
[348971036,1736903452758,-1662.21,0.00013612,2]
[348971037,1736903452768,-2706.75,0.00013613,2]
[348971038,1736903452777,-500.0,0.00013613,2]
[348971039,1736903452786,-662.71,0.00013613,2]
[348971040,1736903452794,-500.0,0.00013613,2]
[348971041,1736903452804,-500.0,0.00013613,2]
[348971042,1736903452814,-775.99,0.00013613,2]
[348971043,1736903452825,-500.0,0.00013613,2]
[348971044,1736903452834,-500.0,0.00013613,2]
[348971045,1736903452843,-500.0,0.00013613,2]
[348971046,1736903452853,-500.0,0.00013613,2]
[348971047,1736903452862,-537.99131023,0.00013613,2]
[348971048,1736903452871,-500.0,0.00013613,2]
[348971049,1736903452881,-500.0,0.00013613,2]
[348971050,1736903452892,-500.0,0.00013613,2]
[348971051,1736903452901,-767.14,0.00013613,2]
[348971052,1736903452910,-1599.67,0.00013613,2]
[348971053,1736903452920,-500.0,0.00013613,2]
[348971054,1736903452930,-1000.0,0.00013616,2]
[348971055,1736903452939,-825.80658522,0.00013624,2]
[348971056,1736903452948,-674.36,0.00013698,2]
[348971057,1736903452957,-674.36,0.00013698,2]
[348971058,1736903452967,-674.36,0.00013698,2]
[348971059,1736903452976,-674.36,0.00013698,2]
[348971060,1736903452985,-674.36,0.00013698,2]
[348971061,1736903452995,-674.36,0.00013698,2]
[348971062,1736903453004,-674.36,0.00013698,2]
[348971063,1736903453015,-674.36,0.00013698,2]
[348971064,1736903453025,-674.36,0.00013698,2]
[348971065,1736903453034,-674.36,0.00013698,2]
[348971066,1736903453046,-500.0,0.00013699,2]
[348971067,1736903453056,-500.0,0.00013699,2]
[348971068,1736903453066,-500.0,0.00013699,2]
[348971069,1736903453076,-500.0,0.00013699,2]
[348971070,1736903453086,-500.0,0.00013699,2]
[348971071,1736903453096,-500.0,0.00013699,2]
[348971072,1736903453106,-500.0,0.00013699,2]
[348971073,1736903453117,-500.0,0.00013699,2]
[348971074,1736903453130,-200.0,0.00013699,2]
[348971075,1736903453139,-3075.17,0.000137,2]
[348971076,1736903453149,-500.0,0.00013719,2]
[348971077,1736903453159,-524.79,0.00013719,2]
[348971078,1736903453169,-500.0,0.00013732,2]
[348971079,1736903453179,-175.33,0.00013737,2]
[348971080,1736903453190,-500.0,0.00013737,2]
[348971081,1736903453200,-500.0,0.00013737,2]
[348971082,1736903453211,-566.82,0.00013737,2]
[348971083,1736903453220,-500.0,0.00013737,2]
[348971084,1736903453230,-500.0,0.00013737,2]
[348971085,1736903453239,-615.99,0.00013737,2]
[348971086,1736903453250,-590.33,0.00013737,2]
[348971087,1736903453259,-500.0,0.00013829,2]
[348971088,1736903453270,-560.86,0.00013829,2]
[348971089,1736903453281,-500.0,0.00013829,2]
[348971090,1736903453291,-500.0,0.00013829,2]
[348971091,1736903453300,-500.0,0.00013829,2]
[348971092,1736903453310,-500.0,0.00013833,2]
[348971093,1736903453320,-500.0,0.00013833,2]
[348971094,1736903453330,-500.0,0.00013833,2]
[348971095,1736903453339,-500.0,0.00013833,2]
[348971096,1736903453350,-500.0,0.00013833,2]
[348971097,1736903453360,-500.0,0.00013833,2]
[348971098,1736903453369,-500.0,0.00013833,2]
[348971099,1736903453379,-500.0,0.00013833,2]
[348971100,1736903453389,-500.0,0.00013833,2]
[348971101,1736903453399,-500.0,0.00013833,2]
[348971102,1736903453409,-500.0,0.00013833,2]
[348971103,1736903453420,-500.0,0.00013833,2]
[348971104,1736903453430,-500.0,0.00013833,2]
[348971105,1736903453439,-1045.75,0.00013833,2]
[348971106,1736903453450,-500.0,0.00013833,2]
[348971107,1736903453460,-908.91,0.00013833,2]
[348971108,1736903453470,-598.68,0.00013833,2]
[348971109,1736903453479,-239.15906944,0.00013833,2]
[348971110,1736903453513,-500.0,0.00012641,2]
[348971111,1736903453523,-334.58093056,0.00013833,2]
[348971112,1736903453533,-500.0,0.00013833,2]
[348971113,1736903453542,-753.86,0.00013833,2]
[348971114,1736903453553,-500.0,0.00013833,2]
[348971115,1736903453563,-500.0,0.00013833,2]
[348971116,1736903453574,-875.17,0.00013833,2]
[348971117,1736903453584,-565.33,0.00013833,2]
[348971118,1736903453594,-997.8,0.00013833,2]
[348971119,1736903453604,-500.0,0.00013833,2]
[348971120,1736903453614,-500.0,0.00013833,2]
[348971121,1736903453623,-500.0,0.00013833,2]
[348971122,1736903453634,-500.0,0.00013833,2]
[348971123,1736903453644,-500.0,0.00013833,2]
[348971124,1736903453654,-314.173266,0.00013833,2]
[348971125,1736903453663,-500.0,0.00013833,2]
[348971126,1736903453673,-268.356353,0.00013833,2]
[348971127,1736903453683,-1012.27,0.00013833,2]
[348971128,1736903453692,-500.0,0.00013833,2]
[348971129,1736903453702,-674.36,0.00013834,2]
[348971130,1736903453711,-500.0,0.00013834,2]
[348971131,1736903453720,-500.0,0.00013834,2]
[348971132,1736903453730,-500.0,0.00013834,2]
[348971133,1736903453739,-581.96,0.00013834,2]
[348971134,1736903453748,-500.0,0.00013834,2]
[348971135,1736903453757,-500.0,0.00013866,2]
[348971136,1736903453766,-500.0,0.00013866,2]
[348971137,1736903453777,-500.0,0.00013866,2]
[348971138,1736903453787,-994.95,0.00013866,2]
[348971139,1736903453798,-500.0,0.00013866,2]
[348971140,1736903453808,-175.33,0.00013874,2]
[348971141,1736903453821,-500.0,0.00013886,2]
[348971142,1736903453831,-500.0,0.00013886,2]
[348971143,1736903453842,-500.0,0.00013886,2]
[348971144,1736903453851,-500.0,0.00013886,2]
[348971145,1736903453862,-500.0,0.00013886,2]
[348971146,1736903453872,-500.0,0.00013886,2]
[348971147,1736903453882,-607.88,0.00013886,2]
[348971148,1736903453892,-500.0,0.00013886,2]
[348971149,1736903453903,-500.0,0.00013886,2]
[348971150,1736903453914,-500.0,0.00013886,2]
[348971151,1736903453924,-500.0,0.00013886,2]
[348971152,1736903453934,-500.0,0.00013886,2]
[348971153,1736903453943,-520.56,0.00013886,2]
[348971154,1736903453952,-500.0,0.00013886,2]
[348971155,1736903453963,-500.0,0.00013886,2]
[348971156,1736903453973,-1662.21,0.00013886,2]
[348971157,1736903453983,-2706.75,0.00013887,2]
[348971158,1736903453993,-500.0,0.00013887,2]
[348971159,1736903454002,-662.71,0.00013887,2]
[348971160,1736903454011,-500.0,0.00013887,2]
[348971161,1736903454021,-500.0,0.00013887,2]
[348971162,1736903454031,-775.99,0.00013887,2]
[348971163,1736903454041,-500.0,0.00013887,2]
[348971164,1736903454051,-500.0,0.00013887,2]
[348971165,1736903454062,-500.0,0.00013887,2]
[348971166,1736903454072,-500.0,0.00013887,2]
[348971167,1736903454081,-500.0,0.00013887,2]
[348971168,1736903454091,-500.0,0.00013887,2]
[348971169,1736903454100,-500.0,0.00013887,2]
[348971170,1736903454111,-767.14,0.00013887,2]
[348971171,1736903454125,-1599.67,0.00013887,2]
[348971172,1736903454135,-500.0,0.00013887,2]
[348971173,1736903454144,-500.0,0.00013923,2]
[348971174,1736903454155,-825.80658522,0.00013969,2]
[348971175,1736903454165,-500.0,0.00013993,2]
[348971176,1736903454174,-524.79,0.00013993,2]
[348971177,1736903454186,-400.0,0.00014,2]
[348971178,1736903454196,-175.33,0.00014011,2]
[348971179,1736903454207,-500.0,0.00014011,2]
[348971180,1736903454217,-500.0,0.00014011,2]
[348971181,1736903454228,-566.82,0.00014011,2]
[348971182,1736903454238,-500.0,0.00014011,2]
[348971183,1736903454247,-615.99,0.00014011,2]
[348971184,1736903454257,-590.33,0.00014011,2]
[348971185,1736903454267,-157.73234429,0.00014103,2]
[348971186,1736903454277,-560.86,0.00014103,2]
[348971187,1736903454287,-500.0,0.00014103,2]
[348971188,1736903454296,-500.0,0.00014103,2]
[348971189,1736903454309,-500.0,0.00014103,2]
[348971190,1736903454320,-500.0,0.00014107,2]
[348971191,1736903454329,-500.0,0.00014107,2]
[348971192,1736903454339,-500.0,0.00014107,2]
[348971193,1736903454350,-500.0,0.00014107,2]
[348971194,1736903454360,-500.0,0.00014107,2]
[348971195,1736903454370,-500.0,0.00014107,2]
[348971196,1736903454380,-500.0,0.00014107,2]
[348971197,1736903454390,-500.0,0.00014107,2]
[348971198,1736903454400,-511.52342684,0.00014107,2]
[348971199,1736903454410,-500.0,0.00014107,2]
[348971200,1736903454420,-494.05244032,0.00014107,2]
[348971201,1736903454430,-500.0,0.00014107,2]
[348971202,1736903454439,-500.0,0.00014107,2]
[348971203,1736903454449,-1045.75,0.00014107,2]
[348971204,1736903454459,-500.0,0.00014107,2]
[348971205,1736903454468,-908.91,0.00014107,2]
[348971206,1736903454478,-598.68,0.00014107,2]
[348971207,1736903454488,-573.74,0.00014107,2]
[348971208,1736903454498,-500.0,0.00014107,2]
[348971209,1736903454508,-753.86,0.00014107,2]
[348971210,1736903454518,-500.0,0.00014107,2]
[348971211,1736903454528,-500.0,0.00014107,2]
[348971212,1736903454538,-875.17,0.00014107,2]
[348971213,1736903454548,-565.33,0.00014107,2]
[348971214,1736903454558,-997.8,0.00014107,2]
[348971215,1736903454568,-500.0,0.00014107,2]
[348971216,1736903454578,-500.0,0.00014107,2]
[348971217,1736903454587,-500.0,0.00014107,2]
[348971218,1736903454597,-500.0,0.00014107,2]
[348971219,1736903454608,-500.0,0.00014107,2]
[348971220,1736903454617,-314.173266,0.00014107,2]
[348971221,1736903454627,-500.0,0.00014107,2]
[348971222,1736903454636,-268.356353,0.00014107,2]
[348971223,1736903454646,-1012.27,0.00014107,2]
[348971224,1736903454656,-207.51,0.00014107,2]
[348971225,1736903454666,-674.36,0.00014108,2]
[348971226,1736903454676,-500.0,0.00014108,2]
[348971227,1736903454686,-500.0,0.00014108,2]
[348971228,1736903454695,-500.0,0.00014108,2]
[348971229,1736903454705,-581.96,0.00014108,2]
[348971230,1736903454714,-500.0,0.00014108,2]
[348971231,1736903454724,-500.0,0.00014114,2]
[348971232,1736903454734,-500.0,0.0001414,2]
[348971233,1736903454744,-568.1945883,0.0001414,2]
[348971234,1736903454754,-500.0,0.0001414,2]
[348971235,1736903454764,-994.95,0.0001414,2]
[348971236,1736903454774,-500.0,0.0001414,2]
[348971237,1736903454784,-175.33,0.00014148,2]
[348971238,1736903454794,-500.0,0.0001416,2]
[348971239,1736903454804,-500.0,0.0001416,2]
[348971240,1736903454814,-500.0,0.0001416,2]
[348971241,1736903454824,-353.4670403,0.0001416,2]
[348971242,1736903454834,-500.0,0.0001416,2]
[348971243,1736903454844,-500.0,0.0001416,2]
[348971244,1736903454855,-607.88,0.0001416,2]
[348971245,1736903454864,-500.0,0.0001416,2]
[348971246,1736903454874,-500.0,0.0001416,2]
[348971247,1736903454885,-500.0,0.0001416,2]
[348971248,1736903454895,-264.21611931,0.0001416,2]
[348971249,1736903454904,-500.0,0.0001416,2]
[348971250,1736903454914,-520.56,0.0001416,2]
[348971251,1736903454924,-500.0,0.0001416,2]
[348971252,1736903454933,-1662.21,0.0001416,2]
[348971253,1736903454943,-2706.75,0.00014161,2]
[348971254,1736903454952,-500.0,0.00014161,2]
[348971255,1736903454962,-662.71,0.00014161,2]
[348971256,1736903454972,-500.0,0.00014161,2]
[348971257,1736903454981,-500.0,0.00014161,2]
[348971258,1736903454991,-775.99,0.00014161,2]
[348971259,1736903455000,-500.0,0.00014161,2]
[348971260,1736903455010,-500.0,0.00014161,2]
[348971261,1736903455020,-500.0,0.00014161,2]
[348971262,1736903455030,-500.0,0.00014161,2]
[348971263,1736903455040,-500.0,0.00014161,2]
[348971264,1736903455050,-500.0,0.00014161,2]
[348971265,1736903455060,-500.0,0.00014161,2]
[348971266,1736903455070,-767.14,0.00014161,2]
[348971267,1736903455080,-1599.67,0.00014161,2]
[348971268,1736903455091,-500.0,0.00014161,2]
[348971269,1736903455103,-2400.0,0.00014246,2]
[348971270,1736903455114,-900.0,0.00014246,2]
[348971271,1736903455127,-500.0,0.00014267,2]
[348971272,1736903455138,-524.79,0.00014267,2]
[348971273,1736903455147,-150.0,0.00014281,2]
[348971274,1736903455158,-175.33,0.00014285,2]
[348971275,1736903455170,-500.0,0.00014285,2]
[348971276,1736903455180,-500.0,0.00014285,2]
[348971277,1736903455190,-566.82,0.00014285,2]
[348971278,1736903455202,-500.0,0.00014285,2]
[348971279,1736903455212,-615.99,0.00014285,2]
[348971280,1736903455222,-590.33,0.00014285,2]
[348971281,1736903455232,-500.0,0.00014306,2]